bitfinex-derivatives/quotes_SOLF0:USTF0_20250626
["timestamp","ask_amount","ask_price","bid_price","bid_amount"]
[1750952159886,4.767,142.12,142.04,6.81075491]
[1750952160088,5.25090549,142.11,142.04,6.81075491]
[1750952160287,17.48565263,142.12,142.04,68.11075491]
[1750952160493,5.25075428,142.11,142.04,68.11075491]
[1750952160685,5.68515263,142.12,142.04,68.11075491]
[1750952160887,12.28413028,142.11,142.04,68.11075491]
[1750952161083,5.68515263,142.12,142.06,6.81075491]
[1750952161384,5.68515263,142.14,142.08,6.81075491]
[1750952161580,6.39151367,142.16,142.08,6.81075491]
[1750952161581,10.93539859,142.15,142.08,6.81075491]
[1750952161782,5.68515263,142.14,142.08,6.81075491]
[1750952162085,6.81075491,142.14,142.05,2.3091]
[1750952162286,6.81075491,142.12,142.05,2.3091]
[1750952162488,7.0347,142.1,142.06,7.036]
[1750952162687,10.22636634,142.14,142.07,6.81075491]
[1750952162889,5.24812897,142.13,142.07,6.81075491]
[1750952163089,14.65787475,142.12,142.07,6.81075491]
[1750952163392,7.0337,142.12,142.07,6.81075491]
[1750952163594,12.28102897,142.13,142.07,6.81075491]
[1750952163892,2.37634862,142.12,142.05,2.3091]
[1750952164089,7.0334,142.12,142.08,7.035]
[1750952164289,5.24812897,142.14,142.06,6.81075491]
[1750952164489,6.81075491,142.12,142.05,2.3091]
[1750952164688,2.37653272,142.11,142.05,2.3091]
[1750952164892,6.81075491,142.12,142.05,2.3091]
[1750952165094,2.37658676,142.11,142.05,2.3091]
[1750952165294,7.0345,142.1,142.07,7.0354]
[1750952165494,12.05990608,142.12,142.05,2.3091]
[1750952165693,7.63808049,142.11,142.04,61.3]
[1750952165896,9.42352932,142.1,142.06,7.036]
[1750952166097,2.38892932,142.09,142.04,61.3]
[1750952166295,7.0339,142.11,142.04,61.3]
[1750952166499,2.38938098,142.1,142.04,61.3]
[1750952166698,2.38938098,142.09,142.04,61.3]
[1750952166897,12.60795646,142.13,142.04,61.3]
[1750952167200,14.45087496,142.12,142.04,61.3]
[1750952167500,6.81075491,142.08,142.04,61.3]
[1750952167701,13.84615491,142.08,142.05,7.0366]
[1750952167888,13.84615491,142.08,142.01,4.8272]
[1750952168093,2.38932887,142.07,142.01,4.8272]
[1750952168399,13.84615491,142.08,142.05,7.0364]
[1750952168596,2.39948829,142.07,142.01,4.8272]
[1750952168796,6.81075491,142.1,142.07,7.0354]
[1750952168991,7.70766039,142.09,142.02,6.81075491]
[1750952169192,2.39948829,142.08,142.02,6.81075491]
[1750952169394,2.39948829,142.07,142.06,7.036]
[1750952169791,2.3927,142.11,142.02,6.81075491]
[1750952169792,5.28191372,142.1,142.03,2.481]
[1750952169993,2.39951835,142.09,142.03,2.481]
[1750952170189,2.39951835,142.08,142.03,2.481]
[1750952170398,9.4268,142.11,142.03,2.481]
[1750952170705,7.68099943,142.1,142.07,7.0356]
[1750952171004,2.39938277,142.09,142.07,7.0356]
[1750952171204,12.31601666,142.1,142.03,2.481]
[1750952171405,2.38923292,142.09,142.03,2.481]
[1750952171605,5.28161666,142.1,142.03,2.481]
[1750952171795,2.38923292,142.09,142.03,2.481]
[1750952172106,5.28161666,142.11,142.06,6.81075491]
[1750952172297,6.81075491,142.15,142.06,6.81075491]
[1750952172496,7.67150314,142.14,142.11,7.0338]
[1750952172702,7.0322,142.15,142.08,6.81075491]
[1750952172899,2.38966466,142.14,142.08,6.81075491]
[1750952173206,5.28252465,142.17,142.13,7.0325]
[1750952173401,2.39073477,142.16,142.1,6.81075491]
[1750952173608,2.4529,142.18,142.1,72.84075491]
[1750952173802,7.0319,142.16,142.1,72.84075491]
[1750952174004,9.26365491,142.18,142.1,72.84075491]
[1750952174203,7.69542055,142.17,142.1,72.84075491]
[1750952174501,9.4228076,142.16,142.1,72.84075491]
[1750952174703,2.3907076,142.15,142.12,7.0336]
[1750952174899,7.0321,142.16,142.12,7.0336]
[1750952175095,2.38992051,142.15,142.12,7.0336]
[1750952175295,7.0321,142.16,142.12,7.0336]
[1750952175493,2.38992051,142.15,142.12,7.0336]
[1750952175802,6.81075491,142.18,142.14,7.0329]
[1750952176006,2.38936191,142.17,142.1,72.84075491]
[1750952176207,7.0311,142.18,142.1,72.84075491]
[1750952176502,2.40460811,142.17,142.1,72.84075491]
[1750952176709,4.7881,142.19,142.12,6.81075491]
[1750952176909,2.40460811,142.18,142.12,6.81075491]
[1750952177104,2.40460811,142.17,142.12,6.81075491]
[1750952177313,11.8187,142.19,142.15,7.032]
[1750952177497,2.40394741,142.18,142.15,7.032]
[1750952177699,11.8186,142.19,142.15,7.032]
[1750952177998,2.40367635,142.18,142.12,6.81075491]
[1750952178210,5.2985528,142.21,142.12,6.81075491]
[1750952178410,2.40354161,142.2,142.12,6.81075491]
[1750952178610,2.40354161,142.19,142.12,6.81075491]
[1750952178909,2.3155,142.22,142.18,7.0308]
[1750952179214,4.6322,142.24,142.16,68.07075491]
[1750952179215,2.3508,142.24,142.16,68.07075491]
[1750952179405,9.42945044,142.23,142.19,7.0301]
[1750952179605,5.32464756,142.24,142.18,6.81075491]
[1750952179913,5.32464756,142.25,142.22,7.0286]
[1750952180209,5.32464756,142.26,142.17,7.1388]
[1750952180403,5.32464756,142.28,142.21,6.81075491]
[1750952180600,2.39868786,142.27,142.23,6.81075491]
[1750952180810,5.3200914,142.29,142.25,6.81075491]
[1750952181003,7.0252,142.3,142.26,7.0266]
[1750952181310,2.39870938,142.29,142.24,2.4283]
[1750952181511,7.71233403,142.3,142.25,6.81075491]
[1750952181813,7.71233403,142.32,142.27,6.81075491]
[1750952182111,7.71233403,142.34,142.29,7.0253]
[1750952182411,6.81075491,142.34,142.26,61.26]
[1750952182600,7.0237,142.33,142.26,61.26]
[1750952182800,5.31362465,142.33,142.26,61.26]
[1750952183006,6.81075491,142.34,142.26,61.26]
[1750952183207,7.71233403,142.34,142.26,61.26]
[1750952183407,6.81075491,142.34,142.26,61.26]
[1750952183605,6.81075491,142.34,142.27,7.026]
[1750952183606,7.0246,142.31,142.27,7.026]
[1750952183805,12.12437956,142.34,142.26,61.26]
[1750952184012,6.81075491,142.34,142.26,61.26]
[1750952184202,6.81075491,142.34,142.21,68.05075491]
[1750952184203,7.0263,142.28,142.21,68.05075491]
[1750952184403,6.81075491,142.28,142.21,61.24]
[1750952184610,7.0262,142.28,142.24,7.0279]
[1750952184811,9.08065491,142.29,142.21,61.24]
[1750952185004,14.39427956,142.29,142.21,61.24]
[1750952185411,7.0267,142.27,142.23,7.028]
[1750952185610,14.39427956,142.29,142.21,61.24]
[1750952185811,7.0273,142.26,142.22,7.0287]
[1750952186109,14.39427956,142.29,142.21,61.24]
[1750952186311,7.0267,142.27,142.23,7.0283]
[1750952186713,4.6629,142.29,142.21,68.05075491]
[1750952187014,4.6629,142.29,142.25,7.0274]
[1750952187312,4.6629,142.29,142.17,6.9825]
[1750952187313,10.04349342,142.29,142.17,6.9825]
[1750952187513,6.81075491,142.2,142.12,61.22]
[1750952188012,6.81075491,142.2,142.14,7.0325]
[1750952188217,6.81075491,142.2,142.12,61.22]
[1750952188411,6.81075491,142.18,142.12,61.22]
[1750952188613,6.81075491,142.18,142.09,2.4448]
[1750952188805,6.81075491,142.16,142.09,2.4448]
[1750952189813,7.0327,142.15,142.11,7.0343]
[1750952190122,6.81075491,142.16,142.09,2.4448]
[1750952190321,7.0332,142.14,142.09,2.4448]
[1750952190509,5.3776437,142.18,142.09,2.4448]
[1750952190713,6.81075491,142.17,142.09,2.4448]
[1750952190917,61.22,142.19,142.11,6.81075491]
[1750952191426,7.0313,142.18,142.13,7.0329]
[1750952191722,7.0313,142.18,142.11,6.81075491]
[1750952192013,2.2742,142.2,142.11,6.81075491]
[1750952192222,7.65053474,142.21,142.09,2.4448]
[1750952192223,14.46128965,142.21,142.13,6.81075491]
[1750952192520,5.32078131,142.2,142.14,7.0326]
[1750952192822,7.0309,142.19,142.11,6.81075491]
[1750952193016,9.14265491,142.21,142.11,6.81075491]
[1750952193218,7.0302,142.2,142.11,6.81075491]
[1750952193426,14.46549702,142.21,142.11,6.81075491]
[1750952193619,14.46549702,142.21,142.15,7.032]
[1750952193918,9.14265491,142.21,142.15,7.032]
[1750952194223,7.0305,142.19,142.1,11.57189103]
[1750952194518,5.32604876,142.21,142.12,11.57189103]
[1750952194709,7.0297,142.21,142.13,60.66]
[1750952195113,12.35551481,142.22,142.13,60.66]
[1750952195309,7.0291,142.22,142.13,60.66]
[1750952195509,2.38570856,142.24,142.15,11.57189103]
[1750952195718,7.0281,142.24,142.16,2.3554]
[1750952195921,5.3297272,142.23,142.16,2.3554]
[1750952196119,2.2779,142.25,142.16,2.3554]
[1750952196120,5.3297272,142.24,142.16,2.3554]
[1750952196313,5.33470157,142.23,142.17,7.0312]
[1750952196515,13.84979103,142.25,142.16,2.3554]
[1750952196714,5.33473004,142.24,142.16,2.3554]
[1750952196912,5.33473004,142.23,142.16,2.3554]
[1750952197115,2.2779,142.25,142.16,2.3554]
[1750952197313,5.33790642,142.24,142.16,2.3554]
[1750952197523,5.33790642,142.23,142.16,2.3554]
[1750952197825,5.33790642,142.22,142.16,2.3554]
[1750952198021,4.67274137,142.25,142.16,2.3554]
[1750952198317,5.33923344,142.24,142.16,2.3554]
[1750952198523,5.33923344,142.23,142.16,2.3554]
[1750952198822,4.67274137,142.25,142.16,2.3554]
[1750952199011,5.34408312,142.24,142.16,2.3554]
[1750952199210,5.34408312,142.23,142.16,2.3554]
[1750952199415,12.37318312,142.22,142.18,7.0309]
[1750952199621,7.0291,142.22,142.18,7.0309]
[1750952200110,7.0286,142.23,142.19,7.0302]
[1750952200311,5.3477408,142.22,142.19,7.0302]
[1750952200514,5.3477408,142.21,142.19,7.0302]
[1750952200714,7.0289,142.22,142.18,7.0307]
[1750952200920,5.35058215,142.21,142.18,7.0307]
[1750952201221,11.57189103,142.24,142.17,7.0312]
[1750952201419,11.57189103,142.21,142.11,60.66]
[1750952201619,5.35303061,142.2,142.11,60.66]
[1750952201828,12.3828092,142.19,142.15,7.032]
[1750952202121,7.0306,142.19,142.15,7.032]
[1750952202518,7.0306,142.19,142.16,7.0318]
[1750952202719,7.0301,142.2,142.11,60.66]
[1750952202919,5.3601162,142.19,142.11,60.66]
[1750952203119,11.57189103,142.21,142.11,60.66]
[1750952203318,5.386387,142.2,142.11,72.23189103]
[1750952203621,5.386387,142.19,142.11,60.66]
[1750952203825,12.417387,142.18,142.11,60.66]
[1750952204127,5.386387,142.17,142.13,7.0329]
[1750952204421,7.0309,142.18,142.11,60.66]
[1750952204718,5.38686989,142.17,142.11,60.66]
[1750952205025,7.0309,142.18,142.14,7.0325]
[1750952205226,5.38447882,142.17,142.11,60.66]
[1750952205422,5.38447882,142.16,142.15,7.0321]
[1750952205724,5.38447882,142.16,142.11,60.66]
[1750952205923,4.54949043,142.2,142.12,11.57189103]
[1750952206124,5.38275353,142.19,142.12,11.57189103]
[1750952206320,5.38275353,142.18,142.12,11.57189103]
[1750952206520,5.38275353,142.17,142.12,11.57189103]
[1750952206717,11.57189103,142.23,142.16,7.0319]
[1750952206922,12.3428517,142.22,142.11,60.66]
[1750952207229,12.3428517,142.21,142.11,60.66]
[1750952207523,7.79166851,142.2,142.11,60.66]
[1750952207722,7.0314,142.17,142.11,60.66]
[1750952207921,11.57189103,142.2,142.11,60.66]
[1750952207922,5.385215,142.16,142.11,60.66]
[1750952208124,7.0309,142.18,142.11,60.66]
[1750952208328,5.35127456,142.17,142.11,60.66]
[1750952208631,16.12307422,142.22,142.11,60.66]
[1750952208830,12.29967424,142.21,142.11,60.66]
[1750952209031,7.74849105,142.2,142.12,11.57189103]
[1750952209227,7.74849105,142.19,142.16,7.0315]
[1750952209432,5.35209671,142.18,142.16,7.0315]
[1750952209619,2.39686616,142.19,142.12,11.57189103]
[1750952209819,5.35318389,142.18,142.17,7.0314]
[1750952210237,5.35318389,142.18,142.12,11.57189103]
[1750952210419,7.0305,142.19,142.11,60.66]
[1750952210623,5.35528861,142.18,142.11,60.66]
[1750952210923,7.0301,142.2,142.11,60.66]
[1750952211119,7.75304665,142.19,142.12,11.57189103]
[1750952211324,5.35736575,142.18,142.11,60.66]
[1750952211524,7.0307,142.19,142.11,60.66]
[1750952212630,7.75804465,142.19,142.16,7.0315]
[1750952212826,5.3587045,142.18,142.16,7.0315]
[1750952213023,7.0307,142.19,142.16,7.0315]
[1750952213536,5.36116644,142.18,142.16,7.0315]
[1750952213831,11.57189103,142.2,142.15,7.0321]
[1750952214140,7.76166366,142.19,142.15,7.0321]
[1750952214438,14.79286366,142.18,142.16,7.0318]
[1750952214628,7.0312,142.18,142.16,7.0318]
[1750952216329,2.40515648,142.17,142.16,7.0318]
[1750952217037,11.32696544,142.21,142.11,60.66]
[1750952217235,7.0309,142.18,142.11,60.66]
[1750952217424,2.40532164,142.17,142.16,7.0315]
[1750952218436,2.40532164,142.17,142.15,7.0321]
[1750952218640,6.79906889,142.21,142.15,7.0321]
[1750952218842,6.79906889,142.21,142.11,60.66]
[1750952218843,7.0315,142.17,142.14,7.0326]
[1750952219132,6.79906889,142.19,142.14,7.0326]
[1750952219332,7.78403611,142.18,142.14,7.0326]
[1750952219534,2.40738757,142.17,142.15,7.0322]
[1750952219734,6.79906889,142.19,142.15,7.0322]
[1750952219931,14.81577266,142.18,142.15,7.0322]
[1750952220138,2.40752253,142.17,142.16,7.0319]
[1750952220333,10.22595374,142.22,142.16,7.0319]
[1750952220533,7.78599495,142.21,142.14,6.79906889]
[1750952220738,5.69805719,142.25,142.18,6.79906889]
[1750952220928,5.69805719,142.25,142.2,6.79906889]
[1750952220929,2.40848104,142.24,142.2,6.79906889]
[1750952221128,4.55004659,142.27,142.2,6.79906889]
[1750952221129,2.40855225,142.23,142.2,6.79906889]
[1750952221333,5.38018671,142.26,142.24,7.0275]
[1750952221530,4.55004659,142.29,142.22,6.79906889]
[1750952221729,12.34003329,142.28,142.21,7.0292]
[1750952221930,19.13910218,142.27,142.18,6.79906889]
[1750952222136,7.7899867,142.26,142.2,6.79906889]
[1750952222438,2.40912222,142.25,142.23,7.0281]
[1750952222732,4.55004659,142.28,142.17,867.94]
[1750952222733,4.55004659,142.29,142.22,6.79906889]
[1750952222937,7.77651958,142.28,142.26,7.0266]
[1750952223239,2.409695,142.27,142.26,7.0266]
[1750952223440,5.36590717,142.3,142.24,6.79906889]
[1750952223631,2.40923641,142.29,142.28,7.0259]
[1750952223828,2.40923641,142.29,142.24,6.79906889]
[1750952223829,4.55369584,142.33,142.26,6.79906889]
[1750952224034,7.7750312,142.32,142.26,6.79906889]
[1750952224327,7.7750312,142.31,142.26,6.79906889]
[1750952224635,4.55498106,142.35,142.33,7.0235]
[1750952224841,7.83568315,142.34,142.27,60.0]
[1750952225036,6.79906889,142.38,142.28,6.79906889]
[1750952225239,6.79906889,142.36,142.3,7.0249]
[1750952225439,7.83714262,142.35,142.27,60.0]
[1750952225640,14.63621151,142.34,142.27,67.0263]
[1750952225835,7.83714262,142.33,142.27,60.0]
[1750952226143,7.83714262,142.32,142.28,7.0255]
[1750952226441,2.40995054,142.31,142.27,60.0]
[1750952226636,9.18986889,142.36,142.27,66.79906889]
[1750952226837,7.85064032,142.35,142.27,66.79906889]
[1750952227043,7.85064032,142.34,142.27,66.79906889]
[1750952227241,7.85236247,142.33,142.27,66.79906889]
[1750952227540,9.18986889,142.36,142.27,66.79906889]
[1750952227740,7.0244,142.32,142.27,60.0]
[1750952227945,6.79906889,142.32,142.24,60.0]
[1750952228245,7.84810419,142.31,142.24,60.0]
[1750952228545,6.79906889,142.33,142.24,60.0]
[1750952228747,7.84489933,142.32,142.23,4.556]
[1750952228946,2.3495,142.35,142.23,4.556]
[1750952228947,6.79906889,142.3,142.23,4.556]
[1750952229244,7.0253,142.3,142.23,4.556]
[1750952229439,6.79906889,142.34,142.25,6.79906889]
[1750952229648,7.84263569,142.33,142.25,6.79906889]
[1750952229844,7.84263569,142.32,142.25,6.79906889]
[1750952230153,6.79906889,142.34,142.25,6.79906889]
[1750952230339,14.86827324,142.33,142.23,11.35506889]
[1750952230543,7.84306751,142.32,142.23,11.35506889]
[1750952230845,6.79906889,142.34,142.23,11.35506889]
[1750952230846,2.43189499,142.31,142.23,11.35506889]
[1750952231034,6.79906889,142.34,142.23,4.556]
[1750952231239,7.84079664,142.33,142.29,7.025]
[1750952231549,7.84079664,142.32,142.24,6.79906889]
[1750952231743,6.79906889,142.34,142.24,6.79906889]
[1750952231941,7.87856506,142.33,142.3,7.0248]
[1750952232248,7.87856506,142.32,142.3,7.0248]
[1750952232447,6.79906889,142.34,142.25,2.3297]
[1750952232644,6.79906889,142.32,142.25,2.3297]
[1750952232949,7.94335955,142.31,142.25,2.3297]
[1750952233147,6.79906889,142.33,142.23,4.556]
[1750952233345,6.79906889,142.31,142.23,4.556]
[1750952233544,7.94341414,142.3,142.23,4.556]
[1750952233740,13.82376889,142.31,142.27,7.0262]
[1750952233940,7.94057248,142.3,142.23,4.556]
[1750952234251,6.79906889,142.32,142.29,7.0252]
[1750952234549,6.79906889,142.3,142.23,4.556]
[1750952234735,6.79906889,142.28,142.23,2.2664]
[1750952235241,14.74116177,142.3,142.23,2.2664]
[1750952235442,6.79906889,142.3,142.23,2.2664]
[1750952235642,7.94264941,142.29,142.23,2.2664]
[1750952235839,6.79906889,142.3,142.27,7.0262]
[1750952236045,7.94349104,142.29,142.23,9.06546889]
[1750952236249,66.77906889,142.32,142.24,2.4851]
[1750952236250,7.94349104,142.31,142.24,2.4851]
[1750952236542,4.6686,142.35,142.25,6.79906889]
[1750952236851,21.75496692,142.34,142.25,6.79906889]
[1750952237042,7.93279803,142.33,142.25,6.79906889]
[1750952237248,7.93279803,142.32,142.26,59.98]
[1750952237550,4.6686,142.35,142.26,59.98]
[1750952237744,7.93431663,142.34,142.27,6.79906889]
[1750952237951,7.93431663,142.33,142.27,6.79906889]
[1750952238248,2.43066747,142.32,142.27,6.79906889]
[1750952238442,7.9349487,142.34,142.26,66.77906889]
[1750952238641,2.43084358,142.33,142.26,66.77906889]
[1750952238837,2.3191,142.35,142.26,66.77906889]
[1750952239047,7.93457898,142.34,142.31,7.0242]
[1750952239251,2.43073032,142.33,142.31,7.0242]
[1750952239551,9.3419,142.35,142.31,7.0242]
[1750952239757,7.93431206,142.34,142.31,7.0242]
[1750952239944,7.0232,142.34,142.3,7.0247]
[1750952240150,2.3191,142.35,142.26,66.77906889]
[1750952240442,7.93431879,142.34,142.26,66.77906889]
[1750952240646,7.0233,142.34,142.26,66.77906889]
[1750952240849,7.0233,142.34,142.26,59.98]
[1750952241047,7.0233,142.34,142.26,66.77906889]
[1750952241854,2.3191,142.35,142.26,66.77906889]
[1750952242054,7.93068769,142.34,142.26,66.77906889]
[1750952242256,9.3419,142.35,142.31,7.0241]
[1750952242446,7.92824647,142.34,142.31,7.0241]
[1750952242646,2.3191,142.35,142.31,7.0241]
[1750952242956,7.92796025,142.34,142.31,7.0241]
[1750952243147,2.3191,142.35,142.31,7.0241]
[1750952243349,14.95052648,142.34,142.31,7.0241]
[1750952243552,2.3191,142.35,142.3,7.0246]
[1750952243750,7.94293943,142.34,142.26,66.77906889]
[1750952243950,7.0233,142.34,142.26,66.77906889]
[1750952244756,9.3418,142.35,142.32,7.0239]
[1750952245056,5.50960525,142.34,142.32,7.0239]
[1750952245252,9.3418,142.35,142.32,7.0239]
[1750952245452,5.50850136,142.34,142.33,7.0235]
[1750952245645,7.93934013,142.34,142.33,7.0235]
[1750952246043,5.50704104,142.34,142.33,7.0235]
[1750952246652,9.22916924,142.38,142.33,7.0235]
[1750952246960,7.0221,142.36,142.33,7.0235]
[1750952247256,7.93665618,142.35,142.33,7.0235]
[1750952247457,7.0228,142.35,142.32,7.0238]
[1750952248558,2.42973212,142.38,142.32,7.0238]
[1750952248850,7.9355306,142.37,142.32,7.0238]
[1750952249044,7.0229,142.35,142.32,7.0238]
[1750952249654,7.0231,142.34,142.31,7.0242]
[1750952249849,6.79906889,142.35,142.26,66.77906889]
[1750952250050,7.9498745,142.34,142.26,66.77906889]
[1750952250252,7.0246,142.31,142.28,7.0257]
[1750952250659,7.0242,142.32,142.29,7.025]
[1750952250851,7.0242,142.32,142.26,66.77906889]
[1750952251251,7.0237,142.33,142.3,7.0249]
[1750952251656,2.43295343,142.35,142.3,7.0247]
[1750952251945,5.52160925,142.34,142.27,6.79906889]
[1750952252150,6.79906889,142.37,142.27,6.79906889]
[1750952252348,7.0235,142.33,142.3,7.0247]
[1750952252748,2.43295343,142.35,142.27,6.79906889]
[1750952252749,2.43295343,142.34,142.27,6.79906889]
[1750952252951,6.79906889,142.37,142.27,6.79906889]
[1750952252952,5.52293475,142.33,142.27,6.79906889]
[1750952253149,2.43353748,142.36,142.27,6.79906889]
[1750952253352,7.0238,142.33,142.3,7.0248]
[1750952253761,7.0238,142.33,142.27,6.79906889]
[1750952253952,7.0232,142.34,142.31,7.0244]
[1750952254149,5.52450164,142.33,142.27,6.79906889]
[1750952254463,12.54830164,142.33,142.3,7.0248]
[1750952254662,7.0238,142.33,142.3,7.0248]
[1750952255361,7.0238,142.33,142.31,7.0245]
[1750952256864,26.60102692,142.39,142.32,7.024]
[1750952257163,6.79906889,142.37,142.28,6.79906889]
[1750952257357,7.97267399,142.36,142.28,6.79906889]
[1750952257554,7.97267399,142.35,142.28,6.79906889]
[1750952257862,7.0238,142.33,142.27,6.79906889]
[1750952258062,5.52930872,142.32,142.27,6.79906889]
[1750952258252,7.0239,142.33,142.28,7.0258]
[1750952258560,5.53426945,142.32,142.28,7.0258]
[1750952258763,7.0241,142.32,142.28,7.0258]
[1750952258960,6.79906889,142.35,142.27,13.82526889]
[1750952259261,14.77889572,142.34,142.26,59.98]
[1750952259566,7.0251,142.3,142.26,67.0067]
[1750952260064,7.0256,142.29,142.26,7.0267]
[1750952260666,7.0252,142.3,142.27,7.0264]
[1750952261264,10.18682692,142.38,142.27,6.79906889]
[1750952261458,24.97745786,142.37,142.27,6.79906889]
[1750952261763,18.17838897,142.36,142.28,7.0259]
[1750952261968,7.99156205,142.35,142.28,7.0259]
[1750952262165,7.99156205,142.34,142.27,6.79906889]
[1750952262365,7.0248,142.31,142.27,6.79906889]
[1750952262567,5.54040471,142.3,142.27,6.79906889]
[1750952262767,7.0248,142.31,142.27,6.79906889]
[1750952262970,7.0248,142.31,142.27,13.82536889]
[1750952263361,7.0248,142.31,142.25,59.14]
[1750952263362,6.79906889,142.33,142.25,59.14]
[1750952263568,6.79906889,142.31,142.25,59.14]
[1750952263768,7.0257,142.29,142.25,59.14]
[1750952264067,6.79906889,142.31,142.25,66.1674]
[1750952264265,13.69062813,142.3,142.25,66.1674]
[1750952264468,7.9095371,142.29,142.25,66.1674]
[1750952264671,6.79906889,142.31,142.25,66.1674]
[1750952264865,7.0265,142.27,142.25,66.1674]
[1750952265072,2.45994813,142.26,142.16,59.14]
[1750952265268,6.79906889,142.23,142.16,59.14]
[1750952265875,5.78338286,142.27,142.19,6.79906889]
[1750952266077,13.71226656,142.26,142.19,6.79906889]
[1750952266281,9.49182574,142.25,142.19,6.79906889]
[1750952266469,7.0276,142.25,142.19,6.79906889]
[1750952266669,9.29126889,142.28,142.19,6.79906889]
[1750952266876,13.71869722,142.27,142.19,6.79906889]
[1750952267076,13.71869722,142.26,142.19,6.79906889]
[1750952267278,9.29126889,142.28,142.19,6.79906889]
[1750952267481,7.0271,142.26,142.19,6.79906889]
[1750952267671,9.29126889,142.28,142.19,6.79906889]
[1750952267872,7.0277,142.25,142.22,7.0288]
[1750952268271,9.29126889,142.28,142.18,6.79906889]
[1750952268475,13.59812554,142.27,142.18,6.79906889]
[1750952268672,8.25298682,142.26,142.18,6.79906889]
[1750952268875,2.4107,142.32,142.21,6.79906889]
[1750952269080,24.88715627,142.31,142.22,6.79906889]
[1750952269376,7.0267,142.27,142.24,7.0276]
[1750952269576,2.46706546,142.26,142.21,59.16]
[1750952269774,5.7543216,142.28,142.21,61.642]
[1750952269978,7.81522625,142.27,142.25,7.0272]
[1750952270176,7.81522625,142.26,142.25,7.0272]
[1750952270371,7.81522625,142.26,142.22,6.79906889]
[1750952270679,7.8133258,142.25,142.21,59.16]
[1750952270883,2.46813867,142.24,142.21,59.16]
[1750952271082,2.46813867,142.23,142.21,59.16]
[1750952271278,7.0266,142.27,142.24,7.0277]
[1750952271482,7.81005595,142.26,142.21,59.16]
[1750952271675,14.83775595,142.25,142.22,7.0286]
[1750952271876,2.46642755,142.24,142.22,7.0286]
[1750952272075,2.46642755,142.23,142.22,7.0286]
[1750952272281,7.80867635,142.23,142.22,7.0286]
[1750952273280,2.46642755,142.23,142.22,7.0286]
[1750952273679,2.46642755,142.23,142.16,61.4946]
[1750952273888,2.46642755,142.22,142.16,61.4946]
[1750952274083,2.46642755,142.21,142.16,68.29366889]
[1750952274384,9.4985,142.24,142.16,68.29366889]
[1750952274584,2.46211368,142.23,142.16,68.29366889]
[1750952274781,2.46211368,142.22,142.21,7.0291]
[1750952275091,2.46211368,142.22,142.16,61.4946]
[1750952275279,2.4703,142.24,142.17,7.0311]
[1750952275280,6.79906889,142.23,142.17,7.0311]
[1750952275583,6.79906889,142.21,142.13,2.2859]
[1750952275885,6.79906889,142.19,142.14,7.0326]
[1750952276283,59.16,142.23,142.12,693.7513]
[1750952276284,6.79906889,142.2,142.12,693.7513]
[1750952276685,6.79906889,142.2,142.12,700.55036889]
[1750952277080,7.0306,142.19,142.16,7.0316]
[1750952277587,2.4703,142.24,142.16,6.79906889]
[1750952277782,2.45912354,142.23,142.16,6.79906889]
[1750952277982,2.45912354,142.22,142.2,7.0299]
[1750952278174,7.0286,142.23,142.2,7.0299]
[1750952278378,2.45806015,142.22,142.2,7.0299]
[1750952278581,7.0286,142.23,142.2,7.0299]
[1750952278779,2.45806015,142.22,142.2,7.0299]
[1750952279087,7.0286,142.23,142.2,7.0299]
[1750952279287,9.48706015,142.22,142.2,7.0299]
[1750952279486,7.029,142.22,142.19,7.0302]
[1750952279893,7.0287,142.23,142.2,7.0298]
[1750952280193,2.45721799,142.22,142.16,6.79906889]
[1750952280388,9.4984,142.24,142.21,7.0291]
[1750952280690,2.4703,142.24,142.16,6.79906889]
[1750952280994,10.71976407,142.26,142.18,6.79906889]
[1750952281190,9.48553098,142.25,142.22,7.0287]
[1750952281389,2.45783098,142.24,142.18,6.79906889]
[1750952281589,7.0277,142.25,142.18,6.79906889]
[1750952281788,7.0277,142.25,142.18,9.11286889]
[1750952282088,12.76196407,142.26,142.18,9.11286889]
[1750952282289,2.45720918,142.25,142.24,7.0279]
[1750952282793,2.45720918,142.25,142.2,6.79906889]
[1750952282794,2.45720918,142.25,142.23,7.0282]